{"text_format":"1","workbook":"xlsx","n_sheets":3,"sheets":["Trousse 1 (Ziploc)","Trousse 2(Coffre)","Feuil1"],"not_rendered":{"charts":0,"images":0,"macros":0,"external_links":0,"defined_names":1,"comments":0,"pivot_tables":0},"unopened":[],"bounds":{"document_bytes":16777216,"sheet_cells":100000,"rows_first":2000,"rows_last":500,"rows_between":2000,"halvings":0,"cell_chars":16384,"cell_head_chars":4096},"cells_cut":0,"cells_raw":0,"read":"whole","date_system":"1900"}

{"sheet":"Trousse 1 (Ziploc)","index":0,"n_rows":79,"n_cols":10,"rows_kept":79,"cut":false,"hidden":false,"merged":[[0,1,0,9],[74,6,74,8],[58,1,58,6],[3,6,4,9],[3,1,4,5],[32,1,33,5],[69,5,69,8],[70,5,70,8],[69,2,69,4],[70,2,70,4],[74,1,74,4],[32,7,33,7],[32,8,33,8],[44,0,46,0],[18,1,18,5],[45,1,45,5],[17,0,19,0],[76,1,76,4]]}
[null,"TROUSSE DE PREMIERS SOINS - SELON LA NOUVELLE NORME CNESST"]
[null,null,null,null,null,null,"Prix à l'unité","Vos besoins","Vos besoins","Montant"]
[null,"Trousse de secteur (grosse trousse)",null,null,null,null,45.03,null,null,{"$f":"SUM(G3*H13*I3)","v":0}]
[null,"qui contient :",null,null,null,null,"si vous avez besoin de remplacer certains articles les prix à l'unité sont :"]
[]
[]
[null,null,null,null,null,null,null,"Quantité livrée","Quantité à venir"]
[null,1,"Coffre",null,null,null,10.5,null,null,{"$f":"SUM(G8*H8)","v":0}]
[null,4,"Bandes triangulaires",null,null,null,0.93,null,null,{"$f":"SUM(G9*H9)","v":0}]
[null,1,"Ciseau à bandage",null,null,null,1.59,null,null,{"$f":"SUM(G10*H10)","v":0}]
[null,2,"Comp. abdominales 5\" X 9\"",null,null,null,0.55000000000000004,null,null,0]
[null,24,"Comp. gaze ST 3 X 3 (4 plis) (2/env)",null,null,null,0.18,null,null,0]
[null,1,"Couverture secours aluminium",null,null,null,1.57,null,null,0]
[null,12,"Lingettes nettoyantes paws (sani-hands)",null,null,null,0.16,null,null,0]
[null,1,"Liste du contenu",null,null,null,0,null,null,0]
[null,1,"Masque de poche (valve et filtre inclus)",null,null,null,10.210000000000001,null,null,0]
[null,12,"Onguent antibiotique bac. Zinc USP 0.9 GR",null,null,null,0.28999999999999998,null,null,0]
[null,8,"Paires de gants d'examen (sans latex, sans poudre)",null,null,null,0.64,null,null,0]
[null,"ou"]
[null,8,"Paires de gants en latex",null,null,null,0.36,null,null,{"$f":"SUM(G20*H20)","v":0}]
[null,26,"Diachylons 1 X 3",null,null,null,7.0000000000000007E-2,null,null,{"$f":"SUM(G21*H21)","v":0}]
[null,8,"Diachylons bouts de doigt ",null,null,null,0.15,null,null,0]
[null,8,"Diachylons jointure",null,null,null,0.14000000000000001,null,null,0]
[null,8,"Diachylons genou",null,null,null,0.2,null,null,0]
[null,4,"Pansements compressifs 4\" X 4\"",null,null,null,1.28,null,null,0]
[null,1,"Pince à écharde",null,null,null,1.41,null,null,0]
[null,2,"Rouleaux de gaze 3\"",null,null,null,0.88,null,null,0]
[null,2,"Rouleaux de gaze 2\"",null,null,null,0.83,null,null,0]
[null,1,"Ruban adhésif (rouleau diachylon)",null,null,null,1.78,null,null,0]
[null,2,"Sac de déchets médicaux",null,null,null,0.18,null,null,0]
[null,50,"Tampons désinfectants",null,null,null,0.08,null,null,0]
[null,"Trousse personnelle (petite trousse)",null,null,null,null,33.479999999999997,null,null,{"$f":"SUM(G32*H42*I32)","v":0}]
[null,"qui contient:",null,null,null,null,"si vous avez besoin de remplacer certains articles les prix à l'unité sont :","Quantité livrée","Quantité à venir"]
[]
[null,1,"Coffre",null,null,null,5.95,null,null,{"$f":"SUM(G35*H35)","v":0}]
[null,2,"Bandes triangulaires",null,null,null,0.93,null,null,{"$f":"SUM(G36*H36)","v":0}]
[null,1,"Ciseau à bandage",null,null,null,1.59,null,null,0]
[null,1,"Comp. abdominales 5\" X 9\"",null,null,null,0.55000000000000004,null,null,0]
[null,12,"Comp. gaze ST 3 X 3 (4 plis) (2/env)",null,null,null,0.18,null,null,0]
[null,1,"Couverture secours aluminium",null,null,null,1.57,null,null,0]
[null,6,"Lingettes nettoyantes paws (sani-hands)",null,null,null,0.16,null,null,0]
[null,1,"Liste du contenu (impression de la liste)",null,null,null,0,null,null,0]
[null,1,"Masque de poche (valve et filtre inclus)",null,null,null,10.210000000000001,null,null,0]
[null,6,"Onguent antibiotique bac. Zinc USP 0.9 GR",null,null,null,0.28999999999999998,null,null,0]
["OU",4,"Paires de gants d'examen (sans latex, sans poudre)",null,null,null,0.64,null,null,0]
[null,"ou"]
[null,4,"Paires de gants en latex",null,null,null,0.36,null,null,{"$f":"SUM(G47*H47)","v":0}]
[null,13,"Diachylons 1 X 3",null,null,null,7.0000000000000007E-2,null,null,{"$f":"SUM(G48*H48)","v":0}]
[null,4,"Diachylons bouts de doigt ",null,null,null,0.15,null,null,0]
[null,4,"Diachylons jointure",null,null,null,0.14000000000000001,null,null,0]
[null,4,"Diachylons genou",null,null,null,0.2,null,null,0]
[null,2,"Pansements compressifs 4\" X 4\"",null,null,null,1.28,null,null,0]
[null,1,"Pince à écharde",null,null,null,1.41,null,null,0]
[null,1,"Roul.gaze 3\"",null,null,null,0.88,null,null,0]
[null,1,"Rouleau de gaze 2\"",null,null,null,0.83,null,null,0]
[null,1,"Ruban adhésif (rouleau diachylon)",null,null,null,1.78,null,null,0]
[null,1,"Sac de déchets médicaux",null,null,null,0.18,null,null,0]
[null,25,"Tampons désinfectants",null,null,null,0.08,null,null,0]
[null,"Articles intéressants à ajouter dans la trousse"]
[null,1,"Glucosamines",null,null,null,3.75,null,null,{"$f":"SUM(G60*H60)","v":0}]
[null,1,"Glace chimique instant (contre les enflures)",null,null,null,1.49,null,null,{"$f":"SUM(G61*H61)","v":0}]
[null,null,null,null,null,"Sous-total",null,null,null,{"$f":"SUM(J3:J61)","v":0}]
[null,null,null,null,null,"TPS 5%",null,null,null,{"$f":"SUM(J62*5%)","v":0}]
[null,null,null,null,null,"TVQ 9,5%",null,null,null,{"$f":"SUM(J62+J63)*9.5%","v":0}]
[null,null,null,null,null,"Total",null,null,null,{"$f":"SUM(J62:J64)","v":0}]
[null,null,"Au coût direct",null,null,null,null,null,null,{"$f":"SUM(J62*6.9368%)+J62","v":0}]
[]
[null,null,"UBR","CBS","F","COMPTE","UNITÉ ADM."]
[]
[null,null,"No de requérant (7chiffres)",null,null,"Nom du requérant"]
[]
[]
["Adresse de retour du matériel:"]
[]
["Pavillon",null,null,null,null,"Local"]
[]
["Nom",null,null,null,null,"Poste"]
[]
["Merci de compléter et expédier ce formulaire numérisé par courriel à : Premierssoins@USherbrooke.ca"]

{"sheet":"Trousse 2(Coffre)","index":1,"n_rows":81,"n_cols":9,"rows_kept":81,"cut":false,"hidden":false,"merged":[[0,1,0,8],[3,1,4,5],[3,6,4,8],[16,0,18,0],[17,1,17,5],[43,0,45,0],[44,1,44,5],[57,1,57,6],[71,2,71,4],[71,5,71,7],[31,1,32,5],[31,6,32,8],[76,1,76,4],[76,6,76,7],[78,1,78,4],[72,2,72,4],[72,5,72,7]]}
[null,"TROUSSE DE PREMIERS SOINS - SELON LA NOUVELLE NORME CNESST"]
[null,null,null,null,null,null,"Prix à l'unité","Vos besoins","Montant"]
[null,"Trousse de secteur (grosse trousse)",null,null,null,null,45.03,null,{"$f":"SUM(G3*H3)","v":0}]
[null,"qui contient :",null,null,null,null,"si vous avez besoin de remplacer certains articles les prix à l'unité sont :"]
[]
[]
[null,1,"Coffre",null,null,null,10.5,null,{"$f":"SUM(G7*H7)","v":0}]
[null,4,"Bandes triangulaires",null,null,null,0.93,null,{"$f":"SUM(G8*H8)","v":0}]
[null,1,"Ciseau à bandage",null,null,null,1.59,null,0]
[null,2,"Comp. abdominales 5\" X 9\"",null,null,null,0.55000000000000004,null,0]
[null,24,"Comp. gaze ST 3 X 3 (4 plis) (2/env)",null,null,null,0.18,null,0]
[null,1,"Couverture secours aluminium",null,null,null,1.57,null,0]
[null,12,"Lingettes nettoyantes paws (sani-hands)",null,null,null,0.16,null,0]
[null,1,"Liste du contenu",null,null,null,0,null,0]
[null,1,"Masque de poche (valve et filtre inclus)",null,null,null,10.210000000000001,null,0]
[null,12,"Onguent antibiotique bac. Zinc USP 0.9 GR",null,null,null,0.28999999999999998,null,0]
[null,8,"Paires de gants d'examen (sans latex, sans poudre)",null,null,null,0.64,null,0]
[null,"ou"]
[null,8,"Paires de gants en latex",null,null,null,0.36,null,0]
[null,26,"Diachylons 1 X 3",null,null,null,7.0000000000000007E-2,null,0]
[null,8,"Diachylons bouts de doigt ",null,null,null,0.15,null,0]
[null,8,"Diachylons jointure",null,null,null,0.14000000000000001,null,0]
[null,8,"Diachylons genou",null,null,null,0.2,null,0]
[null,4,"Pansements compressifs 4\" X 4\"",null,null,null,1.28,null,0]
[null,1,"Pince à écharde",null,null,null,1.41,null,0]
[null,2,"Rouleaux de gaze 3\"",null,null,null,0.88,null,0]
[null,2,"Rouleaux de gaze 2\"",null,null,null,0.83,null,0]
[null,1,"Ruban adhésif (rouleau diachylon)",null,null,null,1.78,null,0]
[null,2,"Sac de déchets médicaux",null,null,null,0.18,null,0]
[null,50,"Tampons désinfectants",null,null,null,0.08,null,0]
[null,"Trousse personnelle (petite trousse)",null,null,null,null,33.479999999999997]
[null,"qui contient:",null,null,null,null,"si vous avez besoin de remplacer certains articles les prix à l'unité sont :"]
[]
[null,1,"Coffre",null,null,null,5.95,1,{"$f":"SUM(G34*H34)","v":5.95}]
[null,2,"Bandes triangulaires",null,null,null,0.93,null,{"$f":"SUM(G35*H35)","v":0}]
[null,1,"Ciseau à bandage",null,null,null,1.59,null,0]
[null,1,"Comp. abdominales 5\" X 9\"",null,null,null,0.55000000000000004,1,0.55000000000000004]
[null,12,"Comp. gaze ST 3 X 3 (4 plis) (2/env)",null,null,null,0.18,12,2.16]
[null,1,"Couverture secours aluminium",null,null,null,1.57,1,1.57]
[null,6,"Lingettes nettoyantes paws (sani-hands)",null,null,null,0.16,6,0.96]
[null,1,"Liste du contenu",null,null,null,0,1,0]
[null,1,"Masque de poche (valve et filtre inclus)",null,null,null,10.210000000000001,1,10.210000000000001]
[null,6,"Onguent antibiotique bac. Zinc USP 0.9 GR",null,null,null,0.28999999999999998,6,1.7399999999999998]
["OU",4,"Paires de gants d'examen (sans latex, sans poudre)",null,null,null,0.64,null,0]
[null,"ou"]
[null,4,"Paires de gants en latex",null,null,null,0.36,3,1.08]
[null,13,"Diachylons 1 X 3",null,null,null,7.0000000000000007E-2,3,0.21000000000000002]
[null,4,"Diachylons bouts de doigt ",null,null,null,0.15,4,0.6]
[null,4,"Diachylons jointure",null,null,null,0.14000000000000001,4,0.56000000000000005]
[null,4,"Diachylons genou",null,null,null,0.2,4,0.8]
[null,2,"Pansements compressifs 4\" X 4\"",null,null,null,1.28,null,0]
[null,1,"Pince à écharde",null,null,null,1.41,null,0]
[null,1,"Roul.gaze 3\"",null,null,null,0.88,null,0]
[null,1,"Rouleau de gaze 2\"",null,null,null,0.83,null,0]
[null,1,"Ruban adhésif (rouleau diachylon)",null,null,null,1.78,null,0]
[null,1,"Sac de déchets médicaux",null,null,null,0.18,1,0.18]
[null,25,"Tampons désinfectants",null,null,null,0.08,20,1.6]
[null,"Articles intéressants à ajouter dans la trousse"]
[null,1,"Valve uni-directionnelle (anti-retour)",null,null,null,7.38,null,{"$f":"SUM(G59*H59)","v":0}]
[null,1,"Filtre (anti-retour)",null,null,null,3.64,1,3.64]
[null,1,"Protecteur facial ",null,null,null,3.9,1,3.9]
[null,1,"Glucosamines"]
[null,1,"Glace chimique instant (contre les enflures)",null,null,null,1.49,null,0]
[null,null,null,null,null,"Sous-total",null,null,{"$f":"SUM(I3:I63)","v":35.71}]
[null,null,null,null,null,"TPS 5%",null,null,{"$f":"SUM(I64*5%)","v":1.7855000000000001}]
[null,null,null,null,null,"TVQ 9,5%",null,null,{"$f":"SUM(I64+I65)*9.5%","v":3.5620725000000002}]
[null,null,null,null,null,"Total",null,null,{"$f":"SUM(I64:I66)","v":41.057572499999999}]
[null,null,"Au coût direct",null,null,null,null,null,{"$f":"SUM(I64*6.9368%)+I64","v":38.187131280000003}]
[]
[null,null,"UBR","CBS","F","COMPTE","UNITÉ ADM."]
[null,null,"103008","000","1","128042","0300"]
[null,null,"No de requérant (7chiffres)",null,null,"Nom du requérant"]
[null,null,"9030001",null,null,"Direction Cent. Form. Environnement"]
[]
["Adresse de retour du matériel:"]
[]
["Pavillon","Marie-Victorin",null,null,null,"Local","D7-1028"]
[]
["Nom","Nancy Bouthillier",null,null,null,"Poste",63624]
[]
["Merci de compléter et expédier ce formulaire numérisé par courriel à : Premierssoins@USherbrooke.ca"]

{"sheet":"Feuil1","index":2,"n_rows":28,"n_cols":10,"rows_kept":28,"cut":false,"hidden":false,"merged":[]}
[]
[]
[]
[6,"Bandes triangulaires",null,null,null,1.1000000000000001,null,{"$f":"SUM(F4*G4)","v":0},4,0.93]
[1,"Ciseau à bandage",null,null,null,2.34,null,{"$f":"SUM(F5*G5)","v":0},1,1.59]
[1,"Coffre"]
[2,"Comp. abdominales 5\" X 9\"",null,null,null,null,null,null,2,0.55000000000000004]
[24,"Comp. gaze ST 3 X 3 (4 plis) (2/env)",null,null,null,null,null,null,24,0.18]
[1,"Couverture secours aluminium",null,null,null,null,null,null,1,1.57]
[25,"Diachylons",null,null,null,0.08,null,{"$f":"SUM(F10*G10)","v":0}]
[12,"Épingles de sureté",null,null,null,0.04,null,{"$f":"SUM(F11*G11)","v":0},0]
[25,"Gazes non tissés 4 X 4",null,null,null,0.28000000000000003,null,{"$f":"SUM(F12*G12)","v":0},0]
[12,"Lingettes nettoyantes paws (sani-hands)",null,null,null,null,null,null,12,0.16]
[1,"Liste du contenu",null,null,null,null,null,null,1]
[1,"Livret de secourisme",null,null,null,1.56,null,{"$f":"SUM(F15*G15)","v":0},0]
[1,"Masque de poche (valve et filtre inclus)",null,null,null,14.38,null,{"$f":"SUM(F16*G16)","v":0},null,10.210000000000001]
[null,"Onguent antibiotique bac. Zinc USP 0.9 GR",null,null,null,null,null,null,12,0.28999999999999998]
[8,"Paires de gants d'examen (sans latex, sans poudre)",null,null,null,null,null,null,8,0.64]
[3,"Paires de gants en latex",null,null,null,2.08,null,{"$f":"SUM(F19*G19)","v":0},0]
[50,"Pansements adhésifs (grandeurs assorties)",null,null,null,null,null,null,50]
[4,"Pansements compressifs 4\" X 4\"",null,null,null,1.3,null,{"$f":"SUM(F21*G21)","v":0},4,1.28]
[1,"Pince à écharde",null,null,null,2.5,null,{"$f":"SUM(F22*G22)","v":0},1,1.41]
[2,"Roul.gaze 3\"",null,null,null,null,null,null,2,0.88]
[4,"Rouleaux de gaze 2\"",null,null,null,0.89,null,{"$f":"SUM(F24*G24)","v":0},2,0.83]
[4,"Rouleaux de gaze 4\"",null,null,null,1.02,null,{"$f":"SUM(F25*G25)","v":0},0]
[1,"Ruban adhésif (rouleau diachylon)",null,null,null,1.82,null,{"$f":"SUM(F26*G26)","v":0},1,1.78]
[2,"Sac de déchets médicaux",null,null,null,null,null,null,2,0.18]
[25,"Tampons désinfectants",null,null,null,0.4,null,{"$f":"SUM(F28*G28)","v":0},50,0.08]